bitfinex/quotes_BTCUSD_20230101
["timestamp","ask_amount","ask_price","bid_price","bid_amount"]
[1672552970064,0.46362651,16551.0,16550.0,4.08082293]
[1672552971070,0.19143552,16551.0,16550.0,4.08082293]
[1672552972321,0.19143552,16551.0,16550.0,4.68505193]
[1672552973037,0.19143552,16551.0,16550.0,4.10263841]
[1672552974985,0.19143552,16551.0,16550.0,4.28373164]
[1672552974986,0.01005065,16551.0,16550.0,4.28373164]
[1672552975210,0.01005065,16551.0,16550.0,4.10313425]
[1672552976419,0.01005065,16551.0,16550.0,4.28422748]
[1672552977136,0.01005065,16551.0,16550.0,4.10313425]
[1672552978896,0.01005065,16551.0,16550.0,3.96513425]
[1672552979146,0.01005065,16551.0,16550.0,4.10313425]
[1672552979462,0.01005065,16551.0,16550.0,4.59045637]
[1672552981374,0.01005065,16551.0,16550.0,4.10313425]
[1672552981620,0.01005065,16551.0,16550.0,4.71166882]
[1672552981848,0.01005065,16551.0,16550.0,4.57366882]
[1672552982391,0.01005065,16551.0,16550.0,3.96513425]
[1672552982607,0.01005065,16551.0,16550.0,4.10313425]
[1672552984054,0.01005065,16551.0,16550.0,4.62727447]
[1672552984773,0.01005065,16551.0,16550.0,4.10313425]
[1672552985534,0.01005065,16551.0,16550.0,4.69048507]
[1672552986013,0.01005065,16551.0,16550.0,4.10313425]
[1672552986518,0.01005065,16551.0,16550.0,4.42293943]
[1672552989640,0.01005065,16551.0,16550.0,3.80103425]
[1672552990383,0.01005065,16551.0,16550.0,3.98212748]
[1672552993444,0.01005065,16551.0,16550.0,4.28420748]
[1672552996599,0.01005065,16551.0,16550.0,3.98212748]
[1672552996841,0.01005065,16551.0,16550.0,4.28420748]
[1672552997348,0.01005065,16551.0,16550.0,4.93448878]
[1672552997603,0.01005065,16551.0,16550.0,5.8278397]
[1672552997859,0.01204507,16552.0,16551.0,0.66124619]
[1672552998112,0.01204507,16552.0,16551.0,3.79780319]
[1672552998359,0.01204507,16552.0,16551.0,4.11814414]
[1672552999368,0.01204507,16552.0,16551.0,5.84280046]
[1672552999636,0.01204507,16552.0,16551.0,6.03150026]
[1672552999884,0.01204507,16552.0,16551.0,5.98822149]
[1672553000392,0.01204507,16552.0,16551.0,6.35040795]
[1672553000641,0.01204507,16552.0,16551.0,5.98822149]
[1672553002352,0.01204507,16552.0,16551.0,5.9881695]
[1672553002840,0.01204507,16552.0,16551.0,5.09488771]
[1672553003095,0.01204507,16552.0,16551.0,4.82324786]
[1672553009499,0.01204507,16552.0,16551.0,4.12324786]
[1672553010298,0.01204507,16552.0,16551.0,4.39488771]
[1672553010544,0.01204507,16552.0,16551.0,5.09488771]
[1672553011037,0.01204507,16552.0,16551.0,4.82324786]
[1672553011286,0.01204507,16552.0,16551.0,5.98816108]
[1672553012053,0.01204507,16552.0,16551.0,5.98812108]
[1672553017154,0.01204507,16552.0,16551.0,6.35030754]
[1672553017635,0.01204507,16552.0,16551.0,6.16945184]
[1672553017865,0.01204507,16552.0,16551.0,6.77364484]
[1672553019272,0.01204507,16552.0,16551.0,6.77362484]
[1672553019999,0.01197757,16552.0,16551.0,6.77362484]
[1672553020469,0.01197757,16552.0,16551.0,6.80419009]
[1672553021193,7.57e-06,16552.0,16551.0,7.2232469]
[1672553021436,0.0115086,16553.0,16552.0,0.16118243]
[1672553021710,0.0115086,16553.0,16552.0,4.82330766]
[1672553021948,0.0115086,16553.0,16552.0,5.22022006]
[1672553022427,0.0115086,16553.0,16552.0,5.40849176]
[1672553022668,0.0115086,16553.0,16552.0,5.0471375]
[1672553023857,0.0115086,16553.0,16552.0,5.40846266]
[1672553024108,0.0115086,16553.0,16552.0,5.54646266]
[1672553024575,0.0115086,16553.0,16552.0,5.36581203]
[1672553025060,0.0115086,16553.0,16552.0,5.36630781]
[1672553026282,0.0115086,16553.0,16552.0,6.14817633]
[1672553026542,0.0115086,16553.0,16552.0,6.41908245]
[1672553026759,0.0115086,16553.0,16552.0,5.96634937]
[1672553027392,0.0115086,16553.0,16552.0,6.41908245]
[1672553027832,0.02625488,16555.0,16553.0,0.5]
[1672553028058,0.02625488,16555.0,16554.0,3.34238]
[1672553028286,0.02625488,16555.0,16554.0,3.36114668]
[1672553029153,0.02625488,16555.0,16554.0,4.06114668]
[1672553029381,0.02625488,16555.0,16554.0,4.20770945]
[1672553029622,0.02625488,16555.0,16554.0,4.20771945]
[1672553031291,0.02625488,16555.0,16554.0,4.20773945]
[1672553035211,0.02625488,16555.0,16554.0,4.1894685]
[1672553035708,0.02625488,16555.0,16554.0,4.0504685]
[1672553035962,0.02625488,16555.0,16554.0,4.1884685]
[1672553036462,0.02625488,16555.0,16554.0,4.3264685]
[1672553038681,0.02625488,16555.0,16554.0,4.62016334]
[1672553038939,0.20763975,16555.0,16554.0,3.23192361]
[1672553039193,0.20763975,16555.0,16554.0,2.63192361]
[1672553039660,0.20763975,16555.0,16554.0,2.49392361]
[1672553039915,0.20763975,16555.0,16554.0,2.63092361]
[1672553040163,0.20863975,16555.0,16554.0,2.63092361]
[1672553040413,0.48083074,16555.0,16554.0,2.63092361]
[1672553040936,0.48083074,16555.0,16554.0,2.93092361]
[1672553041654,0.20863975,16555.0,16554.0,2.93092361]
[1672553042352,0.20863975,16555.0,16554.0,3.23295361]
[1672553042599,0.20863975,16555.0,16554.0,3.23344934]
[1672553042848,0.20863975,16555.0,16554.0,3.85312034]
[1672553043092,0.20863975,16555.0,16554.0,3.23344934]
[1672553044044,0.20863975,16555.0,16554.0,3.23333773]
[1672553044289,0.20863975,16555.0,16554.0,3.85300873]
[1672553044508,0.20863975,16555.0,16554.0,3.23333773]
[1672553044751,0.20863975,16555.0,16554.0,3.85300873]
[1672553045488,0.20863975,16555.0,16554.0,3.23333773]
[1672553049732,0.20863975,16555.0,16554.0,3.23332773]
[1672553051643,0.48083074,16555.0,16554.0,3.23332773]
[1672553051893,0.20863975,16555.0,16554.0,3.23332773]
[1672553053169,0.20863975,16555.0,16554.0,3.22682773]
[1672553055143,0.20863975,16555.0,16554.0,2.52682773]
[1672553056172,0.20863975,16555.0,16554.0,3.22682773]
[1672553057530,0.48083074,16555.0,16554.0,3.226332]
[1672553058295,0.48083074,16555.0,16554.0,3.226342]
[1672553060934,0.48083074,16555.0,16554.0,3.22683773]
[1672553062408,0.20863975,16555.0,16554.0,3.22683773]
[1672553064407,0.20863975,16555.0,16554.0,2.52683773]
[1672553065164,0.20863975,16555.0,16554.0,3.22683773]
[1672553068093,0.20863975,16555.0,16554.0,2.92480773]
[1672553068346,0.20863975,16555.0,16554.0,3.52682773]
[1672553068850,0.20863975,16555.0,16554.0,4.14649873]
[1672553069090,0.20863975,16555.0,16554.0,3.52682773]
[1672553070365,0.20863975,16555.0,16554.0,3.22682773]
[1672553070645,0.20863975,16555.0,16554.0,3.52682773]
[1672553072391,0.20863975,16555.0,16554.0,3.22682773]
[1672553072669,0.20863975,16555.0,16554.0,3.52682773]
[1672553072912,0.20863975,16555.0,16554.0,3.22682773]
[1672553073407,0.20863975,16555.0,16554.0,3.52682773]
[1672553073891,0.20863975,16555.0,16554.0,3.22682773]
[1672553074154,0.20863975,16555.0,16554.0,2.82682773]
[1672553074393,0.20863975,16555.0,16554.0,2.52682773]
[1672553074609,0.20863975,16555.0,16554.0,2.82682773]
[1672553074883,0.48083074,16555.0,16554.0,2.82682773]
[1672553075136,0.48083074,16555.0,16554.0,3.52682773]
[1672553075394,0.48083074,16555.0,16554.0,4.14649873]
[1672553076126,0.20863975,16555.0,16554.0,4.14649873]
[1672553076614,0.20863975,16555.0,16554.0,3.57680389]
[1672553077860,0.20863975,16555.0,16554.0,4.18508971]
[1672553078110,0.20863975,16555.0,16554.0,4.18506971]
[1672553078898,0.48083074,16555.0,16554.0,4.18506971]
[1672553079378,0.48083074,16555.0,16554.0,3.57678389]
[1672553079621,0.48083074,16555.0,16554.0,4.16847682]
[1672553080362,0.20863975,16555.0,16554.0,4.16847682]
[1672553080877,0.48083074,16555.0,16554.0,4.16847682]
[1672553082136,0.48083074,16555.0,16554.0,4.16848682]
[1672553082621,0.48083074,16555.0,16554.0,3.46848682]
[1672553082870,0.48083074,16555.0,16554.0,2.84881582]
[1672553083608,0.48083074,16555.0,16554.0,3.54881582]
[1672553083863,0.48083074,16555.0,16554.0,4.16848682]
[1672553084108,0.20863975,16555.0,16554.0,4.16848682]
[1672553085102,0.02725488,16555.0,16554.0,3.75737768]
[1672553085354,0.20863975,16555.0,16554.0,3.75737768]
[1672553085600,0.20863975,16555.0,16554.0,3.13770668]
[1672553086141,0.20863975,16555.0,16554.0,3.75737768]
[1672553086393,0.02725488,16555.0,16554.0,4.02537592]
[1672553086643,0.02725488,16555.0,16554.0,3.57679389]
[1672553087138,0.02725488,16555.0,16554.0,3.45536768]
[1672553087381,0.02725488,16555.0,16554.0,3.64438277]
[1672553088133,0.02725488,16555.0,16554.0,4.26405377]
[1672553088353,0.02725488,16555.0,16554.0,4.08346998]
[1672553089071,0.02725488,16555.0,16554.0,4.26405377]
[1672553090012,0.02725488,16555.0,16554.0,4.08346998]
[1672553090268,0.02725488,16555.0,16554.0,4.26405377]
[1672553090534,0.02725488,16555.0,16554.0,4.08346998]
[1672553091781,0.20863975,16555.0,16554.0,3.46379898]
[1672553096681,0.48083074,16555.0,16554.0,3.46379898]
[1672553109061,0.48083074,16555.0,16554.0,1.95973886]
[1672553109312,0.84295264,16555.0,16554.0,1.35117696]
[1672553109568,0.47996724,16555.0,16554.0,0.84450087]
[1672553109814,0.9088116,16555.0,16554.0,0.84450087]
[1672553110061,0.90990368,16555.0,16554.0,0.84450087]
[1672553110556,0.45638511,16555.0,16554.0,0.84450087]
[1672553111066,0.45638511,16555.0,16554.0,1.44450087]
[1672553111317,0.9094247,16555.0,16554.0,1.44450087]
[1672553111560,0.90971057,16555.0,16554.0,1.44450087]
[1672553111801,0.9094247,16555.0,16554.0,1.44450087]
[1672553112287,0.9094247,16555.0,16554.0,1.14450087]
[1672553112781,0.90971057,16555.0,16554.0,1.14450087]
[1672553113245,1.27199231,16555.0,16554.0,1.14450087]
[1672553113734,1.27227818,16555.0,16554.0,1.14450087]
[1672553113978,0.90971057,16555.0,16554.0,1.14450087]
[1672553114517,0.9094247,16555.0,16554.0,1.14450087]
[1672553114742,0.90971057,16555.0,16554.0,1.14450087]
[1672553115280,0.9094247,16555.0,16554.0,1.14450087]
[1672553115760,0.8430741,16555.0,16554.0,1.91448587]
[1672553119307,0.84335997,16555.0,16554.0,1.91448587]
[1672553119814,0.8430741,16555.0,16554.0,1.91448587]
[1672553120306,0.84335997,16555.0,16554.0,1.91448587]
[1672553120548,0.8430741,16555.0,16554.0,1.91448587]
[1672553121275,1.11484525,16555.0,16554.0,1.91448587]
[1672553121524,0.8430741,16555.0,16554.0,1.91448587]
[1672553121770,1.11484503,16555.0,16554.0,1.91448587]
[1672553121991,0.8430741,16555.0,16554.0,1.91448587]
[1672553122269,1.11484491,16555.0,16554.0,1.91448587]
[1672553122520,0.84335997,16555.0,16554.0,1.91448587]
[1672553122769,0.48086621,16555.0,16554.0,1.61448587]
[1672553123051,0.84322572,16555.0,16554.0,1.61448587]
[1672553123290,0.48058034,16555.0,16554.0,1.61448587]
[1672553123783,0.48058034,16555.0,16554.0,1.91448587]
[1672553124534,0.84288916,16555.0,16554.0,1.91448587]
[1672553124772,0.84317503,16555.0,16554.0,1.91448587]
[1672553125020,0.84288916,16555.0,16554.0,1.91448587]
[1672553128485,0.84317503,16555.0,16554.0,1.91448587]
[1672553128736,0.84288916,16555.0,16554.0,1.21448587]
[1672553129483,0.48086621,16555.0,16554.0,0.91448587]
[1672553129739,0.48086621,16555.0,16554.0,1.31448587]
[1672553130004,0.48058034,16555.0,16554.0,1.31448587]
[1672553130497,0.64131505,16555.0,16554.0,0.84450087]
[1672553130748,0.18838488,16555.0,16554.0,0.84450087]
[1672553131244,0.02718319,16555.0,16554.0,0.84450087]
[1672553132691,0.02718319,16555.0,16554.0,1.14450087]
[1672553132943,0.02718319,16555.0,16554.0,1.44450087]
[1672553133673,0.02746906,16555.0,16554.0,0.84450087]
[1672553135767,0.18859906,16555.0,16554.0,0.84450087]
[1672553136022,0.66424997,16555.0,16554.0,0.84450087]
[1672553136278,1.20872718,16555.0,16554.0,0.84450087]
[1672553137287,0.66424997,16555.0,16554.0,0.84450087]
[1672553138032,1.20872718,16555.0,16554.0,0.84450087]
[1672553138281,0.66424997,16555.0,16554.0,0.84450087]
[1672553138546,1.20872718,16555.0,16554.0,0.84450087]
[1672553139276,1.20844131,16555.0,16554.0,0.84450087]
[1672553139857,0.6639641,16555.0,16554.0,0.84450087]
[1672553140108,1.20844131,16555.0,16554.0,0.84450087]
[1672553140656,0.5716604,16555.0,16554.0,0.84450087]
[1672553140914,0.02718319,16555.0,16554.0,0.84450087]
[1672553141154,0.02718319,16555.0,16554.0,1.30791253]
[1672553144773,0.02746906,16555.0,16554.0,1.30791253]
[1672553144992,0.5716604,16555.0,16554.0,1.30791253]
[1672553145498,0.02718319,16555.0,16554.0,1.30791253]
[1672553145746,0.5716604,16555.0,16554.0,1.30791253]
[1672553146464,0.02718319,16555.0,16554.0,1.30791253]
[1672553147273,0.5716604,16555.0,16554.0,1.30791253]
[1672553147776,0.5716604,16555.0,16554.0,1.60791253]
[1672553148785,0.57194627,16555.0,16554.0,1.60791253]
[1672553149035,0.5716604,16555.0,16554.0,1.60791253]
[1672553149323,0.5716604,16555.0,16554.0,1.30791253]
[1672553149574,0.5716604,16555.0,16554.0,0.60791253]
[1672553149826,0.57194627,16555.0,16554.0,0.60791253]
[1672553150079,0.5716604,16555.0,16554.0,0.60791253]
[1672553150588,0.5716604,16555.0,16554.0,1.30791253]
[1672553151776,0.57194627,16555.0,16554.0,1.30791253]
[1672553152273,0.5716604,16555.0,16554.0,1.30791253]
[1672553153236,0.5716604,16555.0,16554.0,1.30782577]
[1672553153486,0.57194627,16555.0,16554.0,1.30782577]
[1672553153730,0.5716604,16555.0,16554.0,1.30782577]
[1672553154541,0.57194627,16555.0,16554.0,1.30782577]
[1672553154795,0.5716604,16555.0,16554.0,1.30782577]
[1672553156099,0.57194627,16555.0,16554.0,1.30782577]
[1672553158040,0.57194627,16555.0,16554.0,0.60782577]
[1672553158291,0.5716604,16555.0,16554.0,0.60782577]
[1672553158532,0.5716604,16555.0,16554.0,1.30782577]
[1672553158778,0.57194627,16555.0,16554.0,1.30782577]
[1672553161224,0.5716604,16555.0,16554.0,1.30782577]
[1672553163304,0.57134536,16555.0,16554.0,1.30782577]
[1672553164542,0.02718319,16555.0,16554.0,1.30782577]
[1672553164788,0.02746906,16555.0,16554.0,1.30782577]
[1672553165014,0.80143497,16555.0,16554.0,0.84441411]
[1672553165242,0.64030497,16555.0,16554.0,0.84441411]
[1672553165488,0.6400191,16555.0,16554.0,0.84441411]
[1672553165728,0.64030497,16555.0,16554.0,0.84441411]
[1672553165975,0.02746906,16555.0,16554.0,0.84441411]
[1672553167692,0.02718319,16555.0,16554.0,0.84441411]
[1672553168213,0.64030497,16555.0,16554.0,0.84441411]
[1672553168457,0.02718319,16555.0,16554.0,0.84441411]
[1672553169196,0.6400191,16555.0,16554.0,0.84441411]
[1672553172492,0.02718319,16555.0,16554.0,0.14441411]
[1672553172998,0.6400191,16555.0,16554.0,0.14441411]
[1672553173504,0.6400191,16555.0,16554.0,0.84441411]
[1672553174300,0.02718319,16555.0,16554.0,0.84441411]
[1672553175235,0.6400191,16555.0,16554.0,0.84441411]
[1672553175769,0.6390191,16555.0,16554.0,0.70741411]
[1672553176006,0.6410191,16555.0,16554.0,0.83341411]
[1672553176261,0.02818319,16555.0,16554.0,0.83341411]
[1672553176790,0.02846906,16555.0,16554.0,0.83341411]
[1672553177057,0.02818319,16555.0,16554.0,0.83341411]
[1672553178283,0.02846906,16555.0,16554.0,0.83334289]
[1672553178523,0.02818319,16555.0,16554.0,0.83334289]
[1672553179524,0.02846906,16555.0,16554.0,0.13334289]
[1672553180020,0.02818319,16555.0,16554.0,0.13334289]
[1672553180267,0.02818319,16555.0,16554.0,0.83334289]
[1672553180514,0.57231835,16555.0,16554.0,1.13334289]
[1672553180764,0.57231835,16555.0,16554.0,0.83334289]
[1672553181765,0.57260422,16555.0,16554.0,0.83334289]
[1672553182014,0.57231835,16555.0,16554.0,1.32578418]
[1672553182785,0.57260422,16555.0,16554.0,1.32578418]
[1672553183022,0.57231835,16555.0,16554.0,1.32578418]
[1672553184500,0.57231835,16555.0,16554.0,1.62578418]
[1672553186521,0.57231835,16555.0,16554.0,1.32578418]
[1672553186772,0.57260422,16555.0,16554.0,1.32578418]
[1672553187270,0.57231835,16555.0,16554.0,1.32578418]
[1672553188014,0.57260422,16555.0,16554.0,1.32578418]
[1672553188256,0.57231835,16555.0,16554.0,1.32578418]
[1672553189364,0.57231835,16555.0,16554.0,1.62578418]
[1672553189615,0.57060422,16555.0,16554.0,1.49978418]
[1672553189860,0.57260422,16555.0,16554.0,1.32478418]
[1672553191004,0.57231835,16555.0,16554.0,1.32478418]
[1672553191571,0.57231835,16555.0,16554.0,1.62478418]
[1672553192518,0.57231835,16555.0,16554.0,1.32478418]
[1672553193554,0.57231835,16555.0,16554.0,0.62478418]
[1672553194545,0.57231835,16555.0,16554.0,1.32478418]
[1672553195875,0.57260422,16555.0,16554.0,1.32478418]
[1672553196646,0.57231835,16555.0,16554.0,1.32478418]
[1672553197362,0.02818319,16555.0,16554.0,1.32478418]
[1672553197604,0.02818319,16555.0,16554.0,1.62478418]
[1672553197836,0.57237853,16555.0,16554.0,1.62478418]
[1672553199261,0.57237853,16555.0,16554.0,1.62471682]
[1672553200526,0.57237853,16555.0,16554.0,0.92471682]
[1672553200774,0.57237853,16555.0,16554.0,0.62471682]
[1672553201543,0.57237853,16555.0,16554.0,1.32471682]
[1672553202759,0.57237853,16555.0,16554.0,1.62471682]
[1672553203501,0.5726644,16555.0,16554.0,1.62471682]
[1672553203759,0.57237853,16555.0,16554.0,1.32471682]
[1672553206224,0.57237853,16555.0,16554.0,1.62471682]
[1672553206731,0.57237853,16555.0,16554.0,1.92471682]
[1672553207486,0.57237853,16555.0,16554.0,1.22471682]
[1672553208535,0.57237853,16555.0,16554.0,1.92471682]
[1672553214571,0.57237853,16555.0,16554.0,1.22471682]
[1672553215614,0.57237853,16555.0,16554.0,1.92471682]
[1672553219809,0.57237853,16555.0,16554.0,1.92465244]
[1672553220281,0.5726644,16555.0,16554.0,1.92465244]
[1672553220966,0.57237853,16555.0,16554.0,1.92465244]
[1672553221676,0.57237853,16555.0,16554.0,1.22465244]
[1672553222207,0.5726644,16555.0,16554.0,1.22465244]
[1672553222469,0.57237853,16555.0,16554.0,0.92465244]
[1672553222710,0.57237853,16555.0,16554.0,1.32465244]
[1672553223535,0.5726644,16555.0,16554.0,1.32465244]
[1672553223783,0.57237853,16555.0,16554.0,1.32465244]
[1672553229961,0.5726644,16555.0,16554.0,1.32465244]
[1672553230212,0.57237853,16555.0,16554.0,1.32465244]
[1672553231865,0.5726644,16555.0,16554.0,1.32465244]
[1672553232081,0.57237853,16555.0,16554.0,1.32465244]
[1672553233005,0.5726644,16555.0,16554.0,1.32465244]
[1672553234831,0.57237853,16555.0,16554.0,1.32465244]
[1672553235456,0.5726644,16555.0,16554.0,1.32465244]
[1672553235706,0.57237853,16555.0,16554.0,0.62465244]
[1672553236503,0.5726644,16555.0,16554.0,0.62465244]
[1672553236758,0.5726644,16555.0,16554.0,1.32465244]
[1672553237249,0.57237853,16555.0,16554.0,1.32465244]
[1672553237996,0.5726644,16555.0,16554.0,1.32465244]
[1672553238560,0.57237853,16555.0,16554.0,1.32465244]
[1672553239319,0.02818319,16555.0,16554.0,1.32465244]
[1672553240315,0.57252526,16555.0,16554.0,1.32465244]
[1672553240565,0.02818319,16555.0,16554.0,1.32465244]
[1672553242041,0.02818319,16555.0,16554.0,1.3245518]
[1672553242545,0.02846906,16555.0,16554.0,1.3245518]
[1672553242764,0.02818319,16555.0,16554.0,1.3245518]
[1672553245122,0.02846906,16555.0,16554.0,1.3245518]
[1672553245344,0.02818319,16555.0,16554.0,1.3245518]
[1672553247861,0.02318319,16555.0,16554.0,1.3245518]
[1672553250041,0.02318319,16555.0,16554.0,0.6245518]
[1672553250967,0.02318319,16555.0,16554.0,1.3245518]
[1672553252201,0.45039817,16555.0,16554.0,1.3245518]
[1672553252458,1.15270703,16555.0,16554.0,0.83211051]
[1672553252710,0.7686942,16555.0,16554.0,0.83211051]
[1672553252954,0.32236538,16555.0,16554.0,0.83211051]
[1672553253196,0.56455156,16555.0,16554.0,0.83211051]
[1672553253411,0.86387412,16555.0,16554.0,0.83211051]
[1672553254758,0.86187412,16555.0,16554.0,0.82211051]
[1672553255000,0.86187412,16555.0,16554.0,0.70711051]
[1672553255249,0.86187412,16555.0,16554.0,0.82211051]
[1672553255524,0.86487412,16555.0,16554.0,0.82211051]
[1672553266076,0.86487412,16555.0,16554.0,0.12211051]
[1672553267059,0.86487412,16555.0,16554.0,0.82211051]
[1672553267607,0.31879162,16555.0,16554.0,0.82211051]
[1672553267856,0.73497179,16555.0,16554.0,0.82211051]
[1672553268556,0.73497179,16555.0,16554.0,0.12211051]
[1672553269864,0.31879162,16555.0,16554.0,0.12211051]
[1672553270360,0.16593906,16555.0,16554.0,0.12211051]
[1672553270607,0.71127079,16555.0,16554.0,0.12211051]
[1672553277375,0.71127079,16555.0,16554.0,0.82199926]
[1672553285322,0.70827079,16555.0,16554.0,0.82199926]
[1672553285572,0.71127079,16555.0,16554.0,0.82199926]
[1672553286173,0.71127079,16555.0,16554.0,0.12199926]
[1672553287189,0.71127079,16555.0,16554.0,0.82199926]
[1672553290899,0.71119579,16555.0,16554.0,0.82199926]
[1672553291118,0.71119579,16555.0,16554.0,0.12199926]
[1672553292404,1.60477245,16555.0,16554.0,0.12199926]
[1672553298221,0.71119579,16555.0,16554.0,0.12199926]
[1672553298710,1.60416806,16555.0,16554.0,0.12199926]
[1672553303187,0.71119579,16555.0,16554.0,0.12199926]
[1672553303698,1.60418591,16555.0,16554.0,0.12199926]
[1672553304219,1.60418411,16555.0,16554.0,0.12199926]
[1672553310710,0.16586406,16555.0,16554.0,0.12199926]
[1672553310960,0.71072386,16555.0,16554.0,0.12199926]
[1672553311171,1.01072386,16555.0,16554.0,0.12199926]
[1672553311419,0.71072386,16555.0,16554.0,0.12199926]
[1672553312715,0.71072386,16555.0,16554.0,0.12193772]
[1672553317489,1.6036053,16555.0,16554.0,0.12193772]
[1672553317978,0.71072386,16555.0,16554.0,0.12193772]
[1672553318220,1.60360048,16555.0,16554.0,0.12193772]
[1672553319465,0.87370933,16555.0,16554.0,0.12193772]
[1672553319683,0.71072386,16555.0,16554.0,0.12193772]
[1672553324879,1.60374782,16555.0,16554.0,0.12193772]
[1672553330106,1.60374782,16555.0,16554.0,0.115]
[1672553330613,1.60374782,16555.0,16554.0,0.12241775]
[1672553331872,1.60374782,16555.0,16554.0,0.82241775]
[1672553334357,1.45727782,16555.0,16554.0,0.82241775]
[1672553335097,1.45727782,16555.0,16554.0,0.80304175]
[1672553335359,0.56425386,16555.0,16554.0,0.80304175]
[1672553335603,0.01910819,16555.0,16554.0,1.80525922]
[1672553335855,0.01910819,16555.0,16554.0,1.26585559]
[1672553339224,0.01639406,16555.0,16554.0,1.17023159]
[1672553339737,0.01610819,16555.0,16554.0,1.17023159]
[1672553340238,0.01810819,16555.0,16554.0,1.29523159]
[1672553340488,0.01810819,16555.0,16554.0,1.17023159]
[1672553340746,0.02010819,16555.0,16554.0,1.29523159]
[1672553343093,0.63173409,16555.0,16554.0,1.29523159]
[1672553344833,0.63201996,16555.0,16554.0,1.29523159]
[1672553345092,0.63173409,16555.0,16554.0,1.29523159]
[1672553345334,0.63173409,16555.0,16554.0,0.59523159]
[1672553345829,0.63201996,16555.0,16554.0,0.59523159]
[1672553346070,0.63173409,16555.0,16554.0,0.59523159]
[1672553346284,0.63173409,16555.0,16554.0,1.29523159]
[1672553347755,0.02010819,16555.0,16554.0,1.75164504]
[1672553348004,0.02010819,16555.0,16554.0,2.30462374]
[1672553348270,0.02010819,16555.0,16554.0,2.60462374]
[1672553348801,0.47261682,16555.0,16554.0,2.60462374]
[1672553349819,0.83462027,16555.0,16554.0,2.60462374]
[1672553352796,0.65339519,16555.0,16554.0,2.60462374]
[1672553353297,0.65339519,16555.0,16554.0,1.98495274]
[1672553355619,0.65339519,16555.0,16554.0,2.08335323]
[1672553356149,0.65339519,16555.0,16554.0,1.38335323]
[1672553356904,0.83418302,16555.0,16554.0,1.38335323]
[1672553357408,0.83418302,16555.0,16554.0,2.08335323]
[1672553357897,0.47217957,16555.0,16554.0,2.7029562]
[1672553360393,0.20089602,16555.0,16554.0,2.7029562]
[1672553361960,0.02010819,16555.0,16554.0,2.4520075]
[1672553362255,0.02010819,16555.0,16554.0,2.92721889]
[1672553362452,0.20089602,16555.0,16554.0,2.62518889]
[1672553362700,0.02010819,16555.0,16554.0,2.62518889]
[1672553366927,0.02010819,16555.0,16554.0,2.1499775]
[1672553367172,0.02010819,16555.0,16554.0,2.61089557]
[1672553369583,0.02010819,16555.0,16554.0,1.91089557]
[1672553370342,0.20089602,16555.0,16554.0,1.91089557]
[1672553370590,0.20089602,16555.0,16554.0,2.61089557]
[1672553372447,0.47217957,16555.0,16554.0,2.61089557]
[1672553372687,0.47217957,16555.0,16554.0,1.99122457]
[1672553374536,0.83418302,16555.0,16554.0,1.99122457]
[1672553374782,0.65339519,16555.0,16554.0,1.99122457]
[1672553375540,0.47237821,16555.0,16554.0,1.99122457]
[1672553376514,0.65339519,16555.0,16554.0,1.99122457]
[1672553379448,0.65339519,16555.0,16554.0,1.99112064]
[1672553382156,1.10590382,16555.0,16554.0,1.99112064]
[1672553382368,0.83462027,16555.0,16554.0,1.99112064]
[1672553382653,1.10623171,16555.0,16554.0,1.99112064]
[1672553382900,0.83462027,16555.0,16554.0,1.99112064]
[1672553383902,1.10632698,16555.0,16554.0,1.99112064]
[1672553384396,0.65381835,16555.0,16554.0,1.99112064]
[1672553384656,0.83462027,16555.0,16554.0,1.99112064]
[1672553386650,0.47261682,16555.0,16554.0,1.99112064]
[1672553388847,0.47261682,16555.0,16554.0,2.61079164]
[1672553390617,0.47261682,16555.0,16554.0,1.91079164]
[1672553390868,0.47261682,16555.0,16554.0,1.29112064]
[1672553391841,0.47261682,16555.0,16554.0,1.99112064]
[1672553392089,0.47261682,16555.0,16554.0,2.61079164]
[1672553394497,0.47261682,16555.0,16554.0,2.31123535]
[1672553394862,0.02010819,16555.0,16554.0,2.31123535]
[1672553396253,0.02010819,16555.0,16554.0,2.51806366]
[1672553397735,0.02010819,16555.0,16554.0,1.81806366]
[1672553398047,0.4736461,16555.0,16554.0,1.81806366]
[1672553398309,0.4736461,16555.0,16554.0,1.19839266]
[1672553398310,0.02010819,16555.0,16554.0,1.19839266]
[1672553398811,0.02010819,16555.0,16554.0,1.89839266]
[1672553399298,0.01610819,16555.0,16554.0,2.39306366]
[1672553399793,0.01610819,16555.0,16554.0,2.53206366]
[1672553400532,0.01610819,16555.0,16554.0,2.52682876]
[1672553401791,0.01610819,16555.0,16554.0,2.53115425]
[1672553404803,0.01604696,16555.0,16554.0,1.83115425]
[1672553405798,0.01604696,16555.0,16554.0,1.21148325]
[1672553406038,0.01604696,16555.0,16554.0,1.91148325]
[1672553406276,0.01604696,16555.0,16554.0,2.53115425]
[1672553407269,0.55945724,16555.0,16554.0,2.53115425]
[1672553407527,0.55945724,16555.0,16554.0,1.91148325]
[1672553407784,0.55945724,16555.0,16554.0,1.94869654]
[1672553407785,0.01604696,16555.0,16554.0,1.94869654]
[1672553409520,0.55945724,16555.0,16554.0,1.94869654]
[1672553415984,0.01604696,16555.0,16554.0,1.94869654]
[1672553416257,0.01604696,16555.0,16554.0,1.24869654]
[1672553417236,0.01604696,16555.0,16554.0,1.94869654]
[1672553417481,0.01604696,16555.0,16554.0,2.56836754]
[1672553420847,0.01604696,16555.0,16554.0,2.66153923]
[1672553421348,0.55945724,16555.0,16554.0,2.04186823]
[1672553423263,0.55945724,16555.0,16554.0,1.34186823]
[1672553424276,0.55945724,16555.0,16554.0,2.04186823]
[1672553424511,0.01604696,16555.0,16554.0,2.04186823]
[1672553426054,0.01604696,16555.0,16554.0,2.04176245]
[1672553430407,0.55945724,16555.0,16554.0,1.34176245]
[1672553431408,0.01604696,16555.0,16554.0,2.04176245]
[1672553431658,0.55945724,16555.0,16554.0,2.04176245]
[1672553437250,0.55945724,16555.0,16554.0,1.34176245]
[1672553438489,0.55945724,16555.0,16554.0,2.04176245]
[1672553438768,0.55945724,16555.0,16554.0,2.66143345]
[1672553439267,0.55945724,16555.0,16554.0,2.04176245]
[1672553445829,0.55945724,16555.0,16554.0,1.74176245]
[1672553447081,0.55945724,16555.0,16554.0,1.74164816]
[1672553447596,0.55945724,16555.0,16554.0,2.04164816]
[1672553449578,0.55945724,16555.0,16554.0,2.66131916]
[1672553451876,0.55945724,16555.0,16554.0,2.04164816]
[1672553452374,0.01604696,16555.0,16554.0,2.04164816]
[1672553454642,0.55945724,16555.0,16554.0,2.04164816]
[1672553457044,0.01604696,16555.0,16554.0,2.04164816]
[1672553457283,0.01604696,16555.0,16554.0,2.66131916]
[1672553458277,0.01604696,16555.0,16554.0,2.04164816]
[1672553461493,0.46959843,16555.0,16554.0,2.04164816]
[1672553463110,0.46959843,16555.0,16554.0,1.34164816]
[1672553464173,0.46959843,16555.0,16554.0,2.04164816]
[1672553466880,0.83238585,16555.0,16554.0,2.66131916]
[1672553468444,1.10442297,16555.0,16554.0,2.6612215]
[1672553468694,0.6508715,16555.0,16554.0,2.6612215]
[1672553469463,1.10442297,16555.0,16554.0,2.6612215]
[1672553469965,0.6508715,16555.0,16554.0,2.6612215]